Cogmind - Beta 13 @@@ ROGUE MODE // 2024.04.27 @ 02:25:53 Player: tartine Result: Destroyed by D-53 Grenadier with Mini Grenade Launcher Performance ------------- Evolutions (0) 0 Regions Visited (2) 400 Robots Destroyed (10) 50 Value Destroyed (223) 223 Prototype IDs (0) 0 Alien Tech Used (0) 0 Bonus (0) 0 TOTAL SCORE: 673 Bonus ------- None Cogmind --------- Core Integrity 0/250 Matter 238/300 Energy 100/100 System Corruption 0% Temperature Cool (0) Movement Core (50) Location -10/Mines Parts ------- > --- POWER (1) -------- (None) > --- PROPULSION (2) --- (None) > --- UTILITY (2) ------ (None) > --- WEAPON (2) ------- (None) > --- INVENTORY (5) ---- Light Ion Engine Light Assault Rifle Light Assault Rifle Grenade Launcher Peak State ------------ > --- POWER ------------ Light Nuclear Core > --- PROPULSION ------- Wheel Wheel > --- UTILITY ---------- Improved Heat Sink Small Storage Unit > --- WEAPON ----------- Particle Gun Light Assault Rifle > --- INVENTORY -------- Light Ion Engine Hover Unit Light Assault Rifle Light Assault Rifle Grenade Launcher [Rating: 12] Favorites ----------- Power Light Ion Engine Engine Light Ion Engine Power Core Light Nuclear Core Propulsion Wheel Wheel Wheel Hover Unit Hover Unit Utility Small Storage Unit Device Improved Heat Sink Storage Small Storage Unit Weapon Light Assault Rifle Energy Gun Particle Gun Ballistic Gun Light Assault Rifle Build | -11 -10 -10 ------- Run | Yrd Mat Min Slots Evolved . | . . . Power . | . . . Propulsion . | . . . Utility . | . . . Weapon . | . . . Parts Attached 13 | 6 6 1 Power 3 | 1 2 . Engine 2 | 1 1 . Core 1 | . 1 . Reactor . | . . . Propulsion 3 | 2 . 1 Treads . | . . . Leg . | . . . Wheel 2 | 2 . . Hover 1 | . . 1 Flight . | . . . Utility 2 | 1 1 . Device 1 | . 1 . Storage 1 | 1 . . Processor . | . . . Hackware . | . . . Protection . | . . . Artifact . | . . . Weapon 5 | 2 3 . Energy Gun 1 | . 1 . Energy Cannon . | . . . Ballistic Gun 4 | 2 2 . Ballistic Cannon . | . . . Launcher . | . . . Special Weapon . | . . . Impact Weapon . | . . . Slashing Weapon . | . . . Piercing Weapon . | . . . Special Melee Weapon . | . . . Unidentified Prototypes . | . . . Parts Lost 7 | . 1 6 Power 2 | . 1 1 Propulsion 3 | . . 3 Utility . | . . . Weapon 2 | . . 2 Highest Loss Streak 6 | . 1 6 To Critical Strikes . | . . . Average Slot Usage (%) 90 | . 86 94 Engine 5 | . 10 . Core 7 | . 2 13 Wheel 25 | . 28 23 Device 7 | . 2 14 Storage 14 | . 14 14 Energy Gun 7 | . 2 14 Ballistic Gun 20 | . 25 14 Naked Turns 3 | . . 3 Heaviest Build 15 | 11 15 15 Greatest Support 20 | 20 20 20 Greatest Overweight (x) 1 | . . 1 Average Overweight (x) . | . . . Largest Inventory Capacity 8 | 8 8 8 Average Capacity 7 | 7 8 7 Most Carried 5 | 2 5 5 Average Carried 3 | . 3 4 Final Capacity 8 | 8 8 5 Final Carried 5 | 2 5 4 Class Distribution -------------------- 100% | Mutant Dominant Class ---------------- Mutant | -10/Materials Mutant | -10/Mines Resources | -11 -10 -10 ----------- Run | Yrd Mat Min Matter Collected 317 | 164 123 30 Remotely . | . . . Salvage Created 178 | . 125 53 Parts 21 | . 15 6 Haulers Intercepted . | . . . Recyclers Shooed 1 | . 1 . Parts Field Recycled . | . . . Retrieved Matter . | . . . Parts Self-Destructed . | . . . Prevented . | . . . Kills | -11 -10 -10 ------- Run | Yrd Mat Min Combat Hostiles Destroyed 9 | . 5 4 Guns 7 | . 3 4 AOE 2 | . 2 . Classes Destroyed 5 | . 4 1 Operator 1 | . 1 . Watcher 1 | . 1 . Swarmer 6 | . 3 3 Grunt 2 | . 2 . Assembled 1 | . . 1 Best Kill Streak 3 | . 3 3 Combat Bots Only 3 | . 3 3 Max Kills in Single Turn 2 | . 2 1 Gunslinging . | . . . Exploded 2 | . 2 . Melee . | . . . Uniques/NPCs Destroyed . | . . . Combat | -11 -10 -10 -------- Run | Yrd Mat Min Hostile Shots Fired 55 | . 27 28 Missed 17 | . 7 10 Damage Taken 846 | . 317 529 Core 250 | . 24 226 Absorbed by Shields . | . . . Core Remaining (%) 100 | 100 . . Volleys Fired 36 | 1 27 8 Largest 2 | 2 2 2 Hottest 85 | 40 40 85 Shots Fired 72 | 2 54 16 Gun 72 | 2 54 16 Cannon . | . . . Launcher . | . . . Special . | . . . Kinetic 64 | 2 54 8 Thermal 8 | . . 8 Explosive . | . . . Electromagnetic . | . . . Robot Hit Streak 18 | 2 18 7 Robot Miss Streak 3 | . 3 3 Penetration Max . | . . . Secondary Targets 1 | . . 1 Max Gunslinging Chain 1 | . . 1 Shots Hit Robots 47 | 2 35 10 Core Hits 19 | 1 13 5 Critical Kills . | . . . Critical Parts Destroyed . | . . . Critical Strikes . | . . . Melee Attacks . | . . . Impact . | . . . Slashing . | . . . Piercing . | . . . Sneak Attacks . | . . . Combat Hostiles . | . . . Follow-up Attacks . | . . . Damage Inflicted 681 | 17 545 119 Guns 449 | 17 313 119 Cannons . | . . . Explosions 232 | . 232 . Melee . | . . . Ramming . | . . . Kinetic 360 | 17 313 30 Thermal 321 | . 232 89 Explosive . | . . . Electromagnetic . | . . . Impact . | . . . Slashing . | . . . Piercing . | . . . Highest Corruption . | . . . Average Corruption . | . . . Corruption Purged . | . . . Corruption Blocked . | . . . Overload Shots . | . . . Overflow Damage 93 | . 93 . Projectiles . | . . . Explosions 93 | . 93 . Melee . | . . . Knockbacks . | . . . Impact . | . . . Kinetic . | . . . Secondary . | . . . Self-Inflicted Damage 75 | . 75 . Shots 1 | . 1 . Rammed 1 | . . 1 Targets Rammed 1 | . . 1 Kicked . | . . . Crushed . | . . . Highest Temperature 40 | . 18 40 Average Temperature 13 | . 8 19 Received Heat Transfer 148 | . 108 40 Siege Activations . | . . . Robots Corrupted . | . . . Combat Hostiles . | . . . Parts Fried . | . . . Impact Corruptions . | . . . Robots Melted . | . . . Combat Hostiles . | . . . Parts Melted . | . . . Heat Transferred 422 | . 200 222 Parts Sabotaged . | . . . Parts Stolen . | . . . Parts Stripped . | . . . Power Chain Reactions . | . . . Alert | -11 -10 -10 ------- Run | Yrd Mat Min Peak Influence 248 | . 248 166 Initial 96 | . . 96 Average 136 | . 155 152 Maximum Alert Level 1 | . 1 . Low Security (%) 71 | 100 43 100 Level 1 28 | . 56 . Level 2 . | . . . Level 3 . | . . . Level 4 . | . . . Level 5 . | . . . High Security . | . . . Max Security . | . . . Squads Dispatched . | . . . Investigation . | . . . Extermination . | . . . Reinforcement . | . . . Assault . | . . . Garrison . | . . . Intercept . | . . . Searches Triggered . | . . . Construction Impeded . | . . . Haulers Reinforced . | . . . Active Scanning Responses . | . . . Cargo Convoy Interrupts . | . . . Stealth | -11 -10 -10 --------- Run | Yrd Mat Min Distress Signals . | . . . Communications Jammed . | . . . Distress Signals . | . . . Times Spotted 24 | . 7 17 Peak Tracking Total 21 | . 3 21 Tactical Retreats 1 | . . 1 Traps | -11 -10 -10 ------- Run | Yrd Mat Min Traps Triggered . | . . . Indirectly . | . . . Trap Hack Attempts . | . . . Triggered . | . . . Disarmed . | . . . Reprogrammed . | . . . Reused . | . . . Traps Extracted . | . . . Installed . | . . . Triggered . | . . . Machines | -11 -10 -10 ---------- Run | Yrd Mat Min Machines Disabled 5 | . 5 . Max in Single Turn 3 | . 3 . Machines Repaired . | . . . Machines Dismantled . | . . . Machines Sabotaged . | . . . Overloaded Fab Kills . | . . . Hacking | -11 -10 -10 --------- Run | Yrd Mat Min Machines Accessed 1 | . 1 . Terminals 1 | . 1 . Fabricators . | . . . Repair Stations . | . . . Recycling Units . | . . . Scanalyzers . | . . . Garrison Access . | . . . Total Hacks 1 | . 1 . Successful . | . . . Failed 1 | . 1 . Catastrophic . | . . . Database Lockouts . | . . . Manual 1 | . 1 . Terminals 1 | . 1 . Fabricators . | . . . Repair Stations . | . . . Recycling Units . | . . . Scanalyzers . | . . . Garrison Access . | . . . Terminal Hacks . | . . . Fabricator Hacks . | . . . Repair Station Hacks . | . . . Recycling Unit Hacks . | . . . Scanalyzer . | . . . Garrison Access Hacks . | . . . Unauthorized Hacks . | . . . Terminals . | . . . Fabricators . | . . . Repair Stations . | . . . Recycling Units . | . . . Scanalyzers . | . . . Garrison Access . | . . . Data Cores Recovered 1 | . 1 . Used . | . . . Hacking Detections . | . . . Full Trace Events . | . . . Feedback Events . | . . . Feedback Blocked . | . . . Robot Schematics Acquired . | . . . Robots Built . | . . . Authchips . | . . . Time . | . . . Total Robot Build Rating . | . . . Part Schematics Acquired . | . . . Parts Built . | . . . Authchips . | . . . Time . | . . . Total Part Build Rating . | . . . Parts Repaired . | . . . Time . | . . . Parts Recycled . | . . . Recycled Matter . | . . . Retrieved Matter . | . . . Retrieved Components . | . . . Parts Scanalyzed . | . . . Part Schematics Acquired . | . . . Parts Damaged . | . . . Bothacking | -11 -10 -10 ------------ Run | Yrd Mat Min Used RIF Installer . | . . . Robots Hacked . | . . . Non-combat . | . . . Combat . | . . . Robot Hacks Applied . | . . . Relay Couplers Released . | . . . Fabnet Peak Effective % . | . . . Robots Rewired . | . . . Allies Hacked . | . . . Hacks Repelled . | . . . Allies | -11 -10 -10 -------- Run | Yrd Mat Min Total Allies . | . . . Largest Group . | . . . Highest-Rated Group . | . . . Highest-Rated Ally . | . . . Total Orders . | . . . Ally Attacks . | . . . Total Damage . | . . . Kills . | . . . Allies Corrupted . | . . . Allies Melted . | . . . Intel | -11 -10 -10 ------- Run | Yrd Mat Min Robot Analysis Total . | . . . Derelict Logs Recovered . | . . . Drone Launches . | . . . Drone Recoveries . | . . . Exploration | -11 -10 -10 ------------- Run | Yrd Mat Min Turns Passed 376 | 42 190 144 Spaces Moved 299 | 36 119 144 Core 10 | 2 . 8 Treads . | . . . Legs . | . . . Wheels 282 | 34 119 129 Hover 7 | . . 7 Flight . | . . . Fastest Speed 50 | 50 80 50 Average Speed 79 | 78 80 79 Slowest Speed 120 | 80 80 120 Overloaded Moves . | . . . Propulsion Burnouts . | . . . Robots Hopped . | . . . Cave-ins Triggered . | . . . Exploration Rate (%) 23 | 4 24 41 Regions Visited 2 Branch Regions 1 Pre-discovered Areas . | . . . Known Exits Taken . | . . . Unknown Exits Taken 2 | 1 1 . Scrap Searched . | . . . Spaces Dug . | . . . Terrain Destroyed 58 | . 58 . Melee . | . . . Projectile . | . . . AOE 58 | . 58 . Terrain Rammed . | . . . Walls Destroyed . | . . . Machines Disabled . | . . . Actions | -11 -10 -10 --------- Run | Yrd Mat Min Total 369 | 44 166 159 Wait 13 | . 10 3 Move 297 | 35 118 144 Hop . | . . . Pick Up 6 | 2 4 . Fast Attach 7 | 6 1 . Attach 2 | . 1 1 Detach . | . . . Swap 4 | . 4 . Drop 3 | . 1 2 Fire 36 | 1 27 8 Melee . | . . . Ram 1 | . . 1 Kick . | . . . Crush . | . . . Escape Stasis . | . . . Rewire . | . . . Trap . | . . . Miscellaneous . | . . . Route ------- -11/Scrapyard -10/Materials -10/Mines History --------- Turn | Location | Event 26 | -11/Scrapyard | Discovered new exit (range 14) 43 | -11/Scrapyard | Entered Materials 204 | -10/Materials | Discovered new exit (range 16) 233 | -10/Materials | Entered Mines 302 | -10/Mines | Build established: Mutant 333 | -10/Mines | Assembled infested the area 368 | -10/Mines | Core integrity fell below 50% 377 | -10/Mines | Core integrity fell below 20% 377 | -10/Mines | Destroyed by D-53 Grenadier with Mini Grenade Launcher Last Messages --------------- 00333_ ALERT: Infestation in the mines, dispatching Demolisher response squad. 00342_ C-30 ARC bursts open, deploying its payload. 00342_ D-53 Grenadier unfolds itself. 00342_ Matter Pump disabled. 00344_ The unstable cave ceiling collapses. 00348_ as-58487 destroyed. 00349_ Wheel destroyed. 00355_ as-10991 destroyed. 00356_ Wheel destroyed. 00362_ Lgt. Nuclear Core destroyed. 00363_ as-16712 destroyed. 00370_ Particle Gun destroyed. 00371_ The unstable cave ceiling collapses. 00371_ Dropped Imp. Heat Sink. 00371_ Dropped Sml. Storage Unit. 00373_ Hover Unit destroyed. 00374_ Lgt. Assault Rifle destroyed. 00376_ R-06 Scavenger destroyed. Map ----- +----------------------------------------------------+ | ?????????????????# ##?????????????????? | | ?????????????????# #?????????????????? | | ??????????????????## #?????????????????? | | ????????????####### ## #?????????????????? | | ???????????## ##????????????????????????? | | ????######## ##?????????????????????????? | | ???? ##%####??????????????????????????? | | ???? ##[#?????????????????????????????? | | ?????###### ##*#?????????????????????????????? | | ??????????# ## #?????????????????????????????? | | ??????????# [*=[#???????#?????????????????????? | | ??????????# #####??????? ????????????????????? | | ?????????## #???????????! ????????##??????????? | | ???????### ###### #????% ???????? ??????????? | | ????#### #????*"???????? #??????????? | | ????# ##### #???? "???????? #??????????? | | ???# ### ##?????????? "???????# #??????????? | | ???# #??# ##?????????## ???????## ###????????? | | ???# #???# #?????????## ??????# #???????? | | ???## #????# #######??## ?????# ##???????? | | ????##?????# ## #???## ####????? | | ???????????# #######??# ##### ##???? | | ???????????# #????????## # #???? | | ?##?????##?#%|########## a #???? | | ## ???## ##= %! % **%= #????? | | ### # = = !@ " ##???? | | ######## d " #???? | | #??????### " #???? | | ##??????#### # #???? | | ##??????# ## ##???? | | # ### ######## ##????? | | #### ???## ## ## d # ##?????? | | ???##?????## # ###??????? | | ???????????# ## !! # ##????????? | | ???????????# #### # # #?????????? | | ########## #??## ## # #?????????? | | #???## # # #### #?????????? | | #????## ## #######??#" #?????????? | | ######### #####????## ## ?????????#%"#?????????? | | ????????# #???????## ## ?????????#" #?????????? | | ????????# #????#### ## ?????????# ??????????? | | ????????# ###### ## ?????????? ??????????? | | ????????# ### ?????????? #??????????? | | ????????####### ##?#??????????? ???????????? | | ?????????????## ##??????????????????????????? | | ?????????????# #???????????????????????????? | | ?????????????# ##??????????????????????????? | | ?????????????## #??????????????????????????? | | ??????????????### #??????????????????????????? | | ????????????????## ##??????????????????????????? | +----------------------------------------------------+ Best States ------------- Heat Dissipation 39 Energy Generation 14 Energy Capacity 160 Matter Stores 229 Matter Capacity 300 Sight Range 16 Terrain Scan Density 10 Evasion (%) 44 Item Schematics ----------------- None Robot Schematics ------------------ None Fabricated ------------ Nothing Alien Tech Used ----------------- None Achievements -------------- None Challenges ------------ None Game ------ Seed FireDiametricHumpback Manual? 0 Play Time 00:04:57 Cumulative 26.2 hours Start 2024.04.27 @ 02:22:22 End 2024.04.27 @ 02:25:53 Sessions 1 Manual Loads 0 Difficulty Rogue Special Mode None Game No. 35 Rogue 35 Adventurer 0 Explorer 0 Win Type - Total 1 Types 1/0/0/0/0/0/0/0/0 Lore% 27 Gallery% 34 Achievement% 29 Wizard Run 0 Options --------- Layout 1 ASCII 0 Keyboard 0 Movement Mouse Keybinds 0 Fullscreen 1 Font 24/Smallcaps Map View 50x35 Zoom Use 0% Tactical HUD 1 Map Filters NONE Filters NONE Steam 1 RUN: 6804c9ca-99dd-42fc-8b85-c9012115cd0f